lending/lending_fUSD_20250913
["ID","MTS","AMOUNT","RATE_DAILY","PERIOD"]
[385347889,1757790679553,-1022.06,0.00027671,2]
[385347890,1757790679562,-400.0,0.00027671,2]
[385347891,1757790679571,-400.0,0.00027671,2]
[385347892,1757790679579,-400.0,0.00027671,2]
[385347893,1757790679588,-400.0,0.00027671,2]
[385347894,1757790679597,-516.71,0.00027671,2]
[385347895,1757790679606,-258.59982997,0.00027671,2]
[385347896,1757790679616,-400.0,0.00027671,2]
[385347897,1757790679625,-400.0,0.00027671,2]
[385347898,1757790679634,-400.0,0.00027671,2]
[385347899,1757790679643,-400.0,0.00027671,2]
[385347900,1757790679652,-401.21065301,0.00027671,2]
[385347901,1757790679662,-1379.73,0.00027671,2]
[385347902,1757790679672,-899.94,0.00027671,2]
[385347903,1757790679681,-400.0,0.00027671,2]
[385347904,1757790679690,-400.0,0.00027671,2]
[385347905,1757790679700,-866.46,0.00027671,2]
[385347906,1757790679709,-400.0,0.00027671,2]
[385347907,1757790679718,-556.4,0.00027671,2]
[385347908,1757790679727,-1195.99,0.00027671,2]
[385347909,1757790679735,-518.54,0.00027671,2]
[385347910,1757790679744,-1006.76,0.00027671,2]
[385347911,1757790679753,-1740.08,0.00027671,2]
[385347912,1757790679762,-400.0,0.00027671,2]
[385347913,1757790679771,-403.79200251,0.00027671,2]
[385347914,1757790679780,-400.0,0.00027671,2]
[385347915,1757790679789,-400.0,0.00027671,2]
[385347916,1757790679798,-400.0,0.00027671,2]
[385347917,1757790679807,-400.0,0.00027671,2]
[385347918,1757790679820,-400.0,0.00027671,2]
[385347919,1757790679829,-668.89,0.00027671,2]
[385347920,1757790679838,-400.0,0.00027671,2]
[385347921,1757790679847,-205.49885622,0.00027671,2]
[385347922,1757790679857,-400.0,0.00027671,2]
[385347923,1757790679866,-529.54,0.00027671,2]
[385347924,1757790679876,-400.0,0.00027671,2]
[385347925,1757790679885,-400.0,0.00027671,2]
[385347926,1757790679895,-400.0,0.00027671,2]
[385347927,1757790679904,-927.44,0.00027671,2]
[385347928,1757790679913,-662.77,0.00027671,2]
[385347929,1757790679923,-644.35,0.00027671,2]
[385347930,1757790679932,-400.0,0.00027671,2]
[385347931,1757790679942,-400.0,0.00027671,2]
[385347932,1757790679951,-401.22535731,0.00027671,2]
[385347933,1757790679960,-400.0,0.00027671,2]
[385347934,1757790679970,-400.0,0.00027671,2]
[385347935,1757790679979,-400.0,0.00027671,2]
[385347936,1757790679988,-586.65,0.00027671,2]
[385347937,1757790679997,-899.11,0.00027671,2]
[385347938,1757790680006,-400.0,0.00027671,2]
[385347939,1757790680015,-744.19,0.00027671,2]
[385347940,1757790680025,-770.78,0.00027671,2]
[385347941,1757790680034,-370.311475,0.00027671,2]
[385347942,1757790680044,-714.15,0.00027671,2]
[385347943,1757790680055,-453.23,0.00027671,2]
[385347944,1757790680064,-405.43913606,0.00027671,2]
[385347945,1757790680074,-400.0,0.00027671,2]
[385347946,1757790680083,-400.0,0.00027671,2]
[385347947,1757790680092,-1002.56,0.00027671,2]
[385347948,1757790680102,-809.12,0.00027671,2]
[385347949,1757790680111,-400.0,0.00027671,2]
[385347950,1757790680120,-400.0,0.00027671,2]
[385347951,1757790680130,-400.0,0.00027671,2]
[385347952,1757790680139,-400.0,0.00027671,2]
[385347953,1757790680149,-401.95126474,0.00027671,2]
[385347954,1757790680158,-300.0,0.00027671,2]
[385347955,1757790680168,-400.0,0.00027671,2]
[385347956,1757790680177,-400.0,0.00027671,2]
[385347957,1757790680186,-400.0,0.00027671,2]
[385347958,1757790680195,-404.22737728,0.00027671,2]
[385347959,1757790680205,-920.75,0.00027671,2]
[385347960,1757790680214,-864.64,0.00027671,2]
[385347961,1757790680223,-400.0,0.00027671,2]
[385347962,1757790680232,-400.0,0.00027671,2]
[385347963,1757790680241,-400.0,0.00027671,2]
[385347964,1757790680251,-836.53,0.00027671,2]
[385347965,1757790680260,-400.0,0.00027671,2]
[385347966,1757790680270,-400.0,0.00027671,2]
[385347967,1757790680279,-400.0,0.00027671,2]
[385347968,1757790680288,-400.0,0.00027671,2]
[385347969,1757790680297,-400.0,0.00027671,2]
[385347970,1757790680306,-400.0,0.00027671,2]
[385347971,1757790680316,-400.0,0.00027671,2]
[385347972,1757790680325,-400.0,0.00027671,2]
[385347973,1757790680334,-408.31872692,0.00027671,2]
[385347974,1757790680343,-400.0,0.00027671,2]
[385347975,1757790680352,-400.0,0.00027671,2]
[385347976,1757790680362,-400.0,0.00027671,2]
[385347977,1757790680371,-400.0,0.00027671,2]
[385347978,1757790680380,-759.84,0.00027671,2]
[385347979,1757790680389,-800.39,0.00027671,2]
[385347980,1757790680398,-402.78908086,0.00027671,2]
[385347981,1757790680408,-400.0,0.00027671,2]
[385347982,1757790680417,-438.06,0.00027671,2]
[385347983,1757790680427,-890.46,0.00027671,2]
[385347984,1757790680439,-2863.78,0.00027671,2]
[385347985,1757790680452,-1067.29,0.00027671,2]
[385347986,1757790680464,-483.11,0.00027671,2]
[385347987,1757790680474,-400.0,0.00027671,2]
[385347988,1757790680483,-621.88,0.00027671,2]
[385347989,1757790680493,-440.32,0.00027671,2]
[385347990,1757790680502,-1123.98,0.00027671,2]
[385347991,1757790680512,-400.0,0.00027671,2]
[385347992,1757790680521,-757.94,0.00027671,2]
[385347993,1757790680530,-400.0,0.00027671,2]
[385347994,1757790680540,-400.0,0.00027671,2]
[385347995,1757790680549,-557.63,0.00027671,2]
[385347996,1757790680558,-861.65,0.00027671,2]
[385347997,1757790680567,-363.75888602,0.00027671,2]
[385347998,1757790680576,-803.76,0.00027671,2]
[385347999,1757790680590,-400.0,0.00027671,2]
[385348000,1757790680600,-835.94,0.00027671,2]
[385348001,1757790680610,-434.25,0.00027671,2]
[385348002,1757790680619,-400.0,0.00027671,2]
[385348003,1757790680629,-400.0,0.00027671,2]
[385348004,1757790680639,-400.0,0.00027671,2]
[385348005,1757790680649,-578.44,0.00027671,2]
[385348006,1757790680658,-400.0,0.00027671,2]
[385348007,1757790680668,-550.07,0.00027671,2]
[385348008,1757790680687,-400.0,0.00027671,2]
[385348009,1757790680709,-400.0,0.00027671,2]
[385348010,1757790680730,-800.87,0.00027671,2]
[385348011,1757790680739,-400.0,0.00027671,2]
[385348012,1757790680749,-541.06,0.00027671,2]
[385348013,1757790680758,-400.0,0.00027671,2]
[385348014,1757790680767,-400.0,0.00027671,2]
[385348015,1757790680778,-400.0,0.00027671,2]
[385348016,1757790680787,-400.0,0.00027671,2]
[385348017,1757790680796,-401.73052253,0.00027671,2]
[385348018,1757790680805,-652.82,0.00027671,2]
[385348019,1757790680814,-400.0,0.00027671,2]
[385348020,1757790680823,-400.0,0.00027671,2]
[385348021,1757790680832,-400.0,0.00027671,2]
[385348022,1757790680841,-423.72,0.00027671,2]
[385348023,1757790680850,-400.0,0.00027671,2]
[385348024,1757790680859,-1300.44,0.00027671,2]
[385348025,1757790680870,-400.0,0.00027671,2]
[385348026,1757790680879,-400.0,0.00027671,2]
[385348027,1757790680889,-439.16,0.00027671,2]
[385348028,1757790680898,-400.0,0.00027671,2]
[385348029,1757790680907,-400.0,0.00027671,2]
[385348030,1757790680917,-400.0,0.00027671,2]
[385348031,1757790680926,-400.0,0.00027671,2]
[385348032,1757790680936,-826.3,0.00027671,2]
[385348033,1757790680945,-400.0,0.00027671,2]
[385348034,1757790680954,-400.0,0.00027671,2]
[385348035,1757790680963,-404.29388041,0.00027671,2]
[385348036,1757790680972,-787.45,0.00027671,2]
[385348037,1757790680981,-944.98,0.00027671,2]
[385348038,1757790680990,-535.57,0.00027671,2]
[385348039,1757790681000,-400.0,0.00027671,2]
[385348040,1757790681010,-800.47,0.00027671,2]
[385348041,1757790681019,-1253.6,0.00027671,2]
[385348042,1757790681028,-400.0,0.00027671,2]
[385348043,1757790681038,-400.0,0.00027671,2]
[385348044,1757790681047,-400.0,0.00027671,2]
[385348045,1757790681056,-544.69,0.00027671,2]
[385348046,1757790681065,-400.0,0.00027671,2]
[385348047,1757790681074,-400.0,0.00027671,2]
[385348048,1757790681084,-400.0,0.00027671,2]
[385348049,1757790681093,-842.01,0.00027671,2]
[385348050,1757790681102,-400.0,0.00027671,2]
[385348051,1757790681111,-1082.49,0.00027671,2]
[385348052,1757790681120,-400.0,0.00027671,2]
[385348053,1757790681130,-652.8,0.00027671,2]
[385348054,1757790681139,-556.97,0.00027671,2]
[385348055,1757790681148,-400.0,0.00027671,2]
[385348056,1757790681157,-489.49,0.00027671,2]
[385348057,1757790681166,-400.0,0.00027671,2]
[385348058,1757790681175,-400.0,0.00027671,2]
[385348059,1757790681184,-400.0,0.00027671,2]
[385348060,1757790681194,-400.0,0.00027671,2]
[385348061,1757790681203,-400.0,0.00027671,2]
[385348062,1757790681212,-400.0,0.00027671,2]
[385348063,1757790681221,-400.0,0.00027671,2]
[385348064,1757790681231,-439.06,0.00027671,2]
[385348065,1757790681240,-890.6,0.00027671,2]
[385348066,1757790681249,-589.14,0.00027671,2]
[385348067,1757790681258,-400.0,0.00027671,2]
[385348068,1757790681267,-583.29,0.00027671,2]
[385348069,1757790681276,-400.0,0.00027671,2]
[385348070,1757790681285,-708.58,0.00027671,2]
[385348071,1757790681294,-400.0,0.00027671,2]
[385348072,1757790681303,-400.0,0.00027671,2]
[385348073,1757790681312,-531.52,0.00027671,2]
[385348074,1757790681321,-1252.15,0.00027671,2]
[385348075,1757790681331,-400.0,0.00027671,2]
[385348076,1757790681339,-400.0,0.00027671,2]
[385348077,1757790681348,-400.0,0.00027671,2]
[385348078,1757790681358,-947.61,0.00027671,2]
[385348079,1757790681366,-400.0,0.00027671,2]
[385348080,1757790681376,-400.0,0.00027671,2]
[385348081,1757790681385,-400.0,0.00027671,2]
[385348082,1757790681394,-400.0,0.00027671,2]
[385348083,1757790681402,-402.22588135,0.00027671,2]
[385348084,1757790681411,-404.95263573,0.00027671,2]
[385348085,1757790681419,-1050.56,0.00027671,2]
[385348086,1757790681428,-400.0,0.00027671,2]
[385348087,1757790681437,-400.0,0.00027671,2]
[385348088,1757790681627,-400.0,0.00027671,2]
[385348089,1757790681636,-402.65852411,0.00027671,2]
[385348090,1757790681645,-400.0,0.00027671,2]
[385348091,1757790681656,-400.0,0.00027671,2]
[385348092,1757790681667,-400.0,0.00027671,2]
[385348093,1757790681677,-872.42,0.00027671,2]
[385348094,1757790681687,-791.71,0.00027671,2]
[385348095,1757790681696,-355.63550553,0.00027671,2]
[385348096,1757790681705,-400.0,0.00027671,2]
[385348097,1757790681715,-407.96,0.00027671,2]
[385348098,1757790681724,-400.0,0.00027671,2]
[385348099,1757790681733,-400.0,0.00027671,2]
[385348100,1757790681741,-400.0,0.00027671,2]
[385348101,1757790681750,-400.0,0.00027671,2]
[385348102,1757790681759,-2593.64,0.00027671,2]
[385348103,1757790681767,-983.81,0.00027671,2]
[385348104,1757790681777,-400.0,0.00027671,2]
[385348105,1757790681785,-868.8,0.00027671,2]
[385348106,1757790681794,-846.53,0.00027671,2]
[385348107,1757790681802,-401.19516302,0.00027671,2]
[385348108,1757790681811,-730.89,0.00027671,2]
[385348109,1757790681820,-400.0,0.00027671,2]
[385348110,1757790681829,-400.0,0.00027671,2]
[385348111,1757790681838,-400.0,0.00027671,2]
[385348112,1757790681847,-785.21,0.00027671,2]
[385348113,1757790681856,-400.0,0.00027671,2]
[385348114,1757790681866,-400.0,0.00027671,2]
[385348115,1757790681876,-964.92,0.00027671,2]
[385348116,1757790681886,-400.0,0.00027671,2]
[385348117,1757790681895,-400.0,0.00027671,2]
[385348118,1757790681905,-447.29,0.00027671,2]
[385348119,1757790681914,-400.0,0.00027671,2]
[385348120,1757790681923,-400.0,0.00027671,2]
[385348121,1757790681933,-428.63,0.00027671,2]
[385348122,1757790681942,-400.0,0.00027671,2]
[385348123,1757790681951,-759.47,0.00027671,2]
[385348124,1757790681960,-400.0,0.00027671,2]
[385348125,1757790681970,-400.0,0.00027671,2]
[385348126,1757790681979,-400.0,0.00027671,2]
[385348127,1757790681989,-400.0,0.00027671,2]
[385348128,1757790681998,-620.45,0.00027671,2]
[385348129,1757790682007,-862.8,0.00027671,2]
[385348130,1757790682016,-537.7,0.00027671,2]
[385348131,1757790682025,-505.66,0.00027671,2]
[385348132,1757790682034,-400.0,0.00027671,2]
[385348133,1757790682044,-400.0,0.00027671,2]
[385348134,1757790682054,-402.41167738,0.00027671,2]
[385348135,1757790682063,-400.0,0.00027671,2]
[385348136,1757790682072,-427.09,0.00027671,2]
[385348137,1757790682082,-400.0,0.00027671,2]
[385348138,1757790682092,-400.0,0.00027671,2]
[385348139,1757790682101,-400.0,0.00027671,2]
[385348140,1757790682111,-400.0,0.00027671,2]
[385348141,1757790682120,-1263.32,0.00027671,2]
[385348142,1757790682129,-400.0,0.00027671,2]
[385348143,1757790682138,-400.0,0.00027671,2]
[385348144,1757790682148,-400.0,0.00027671,2]
[385348145,1757790682156,-400.0,0.00027671,2]
[385348146,1757790682167,-4665.54,0.00027671,2]
[385348147,1757790682177,-786.15,0.00027671,2]
[385348148,1757790682187,-400.0,0.00027671,2]
[385348149,1757790682195,-769.42,0.00027671,2]
[385348150,1757790682206,-400.0,0.00027671,2]
[385348151,1757790682215,-1162.64,0.00027671,2]
[385348152,1757790682226,-958.92,0.00027671,2]
[385348153,1757790682235,-400.0,0.00027671,2]
[385348154,1757790682246,-843.12,0.00027671,2]
[385348155,1757790682255,-400.0,0.00027671,2]
[385348156,1757790682265,-471.76510034,0.00027671,2]
[385348157,1757790682274,-400.0,0.00027671,2]
[385348158,1757790682282,-830.89,0.00027671,2]
[385348159,1757790682291,-1106.22,0.00027671,2]
[385348160,1757790682300,-400.0,0.00027671,2]
[385348161,1757790682310,-400.0,0.00027671,2]
[385348162,1757790682319,-400.0,0.00027671,2]
[385348163,1757790682328,-400.0,0.00027671,2]
[385348164,1757790682338,-400.0,0.00027671,2]
[385348165,1757790682347,-871.15,0.00027671,2]
[385348166,1757790682357,-484.74,0.00027671,2]
[385348167,1757790682366,-400.0,0.00027671,2]
[385348168,1757790682375,-582.6,0.00027671,2]
[385348169,1757790682384,-1197.3,0.00027671,2]
[385348170,1757790682394,-400.0,0.00027671,2]
[385348171,1757790682403,-400.0,0.00027671,2]
[385348172,1757790682413,-400.0,0.00027671,2]
[385348173,1757790682422,-400.0,0.00027671,2]
[385348174,1757790682432,-3316.79,0.00027671,2]
[385348175,1757790682441,-400.0,0.00027671,2]
[385348176,1757790682454,-400.0,0.00027671,2]
[385348177,1757790682463,-400.0,0.00027671,2]
[385348178,1757790682472,-400.0,0.00027671,2]
[385348179,1757790682483,-1081.81,0.00027671,2]
[385348180,1757790682494,-400.0,0.00027671,2]
[385348181,1757790682504,-400.0,0.00027671,2]
[385348182,1757790682513,-525.46712527,0.00027671,2]
[385348183,1757790682523,-898.38,0.00027671,2]
[385348184,1757790682534,-400.0,0.00027671,2]
[385348185,1757790682543,-744.46,0.00027671,2]
[385348186,1757790682553,-400.0,0.00027671,2]
[385348187,1757790682562,-400.0,0.00027671,2]
[385348188,1757790682572,-1406.57,0.00027671,2]
[385348189,1757790682581,-420.47,0.00027671,2]
[385348190,1757790682590,-2017.53,0.00027671,2]
[385348191,1757790682599,-400.0,0.00027671,2]
[385348192,1757790682609,-400.0,0.00027671,2]
[385348193,1757790682618,-1035.92,0.00027671,2]
[385348194,1757790682628,-400.0,0.00027671,2]
[385348195,1757790682637,-400.0,0.00027671,2]
[385348196,1757790682647,-752.16,0.00027671,2]
[385348197,1757790682655,-400.0,0.00027671,2]
[385348198,1757790682665,-1791.52,0.00027671,2]
[385348199,1757790682675,-729.82,0.00027671,2]
[385348200,1757790682684,-843.08,0.00027671,2]
[385348201,1757790682693,-414.1742697,0.00027671,2]
[385348202,1757790682702,-400.0,0.00027671,2]
[385348203,1757790682711,-400.0,0.00027671,2]
[385348204,1757790682721,-400.0,0.00027671,2]
[385348205,1757790682730,-924.42,0.00027671,2]
[385348206,1757790682740,-715.39,0.00027671,2]
[385348207,1757790682749,-1125.91,0.00027671,2]
[385348208,1757790682758,-543.24,0.00027671,2]
[385348209,1757790682767,-400.0,0.00027671,2]
[385348210,1757790682776,-400.0,0.00027671,2]
[385348211,1757790682785,-905.52,0.00027671,2]
[385348212,1757790682794,-400.0,0.00027671,2]
[385348213,1757790682803,-405.71,0.00027671,2]
[385348214,1757790682813,-400.0,0.00027671,2]
[385348215,1757790682822,-400.0,0.00027671,2]
[385348216,1757790682831,-838.71,0.00027671,2]
[385348217,1757790682840,-400.0,0.00027671,2]
[385348218,1757790682849,-405.06,0.00027671,2]
[385348219,1757790682858,-400.0,0.00027671,2]
[385348220,1757790682867,-897.14,0.00027671,2]
[385348221,1757790682877,-485.2612032,0.00027671,2]
[385348222,1757790682887,-400.0,0.00027671,2]
[385348223,1757790682896,-1221.3,0.00027671,2]
[385348224,1757790682907,-400.89388365,0.00027671,2]
[385348225,1757790682917,-778.35,0.00027671,2]
[385348226,1757790682927,-400.0,0.00027671,2]
[385348227,1757790682938,-400.0,0.00027671,2]
[385348228,1757790682947,-400.0,0.00027671,2]
[385348229,1757790682956,-1097.98,0.00027671,2]
[385348230,1757790682966,-746.12,0.00027671,2]
[385348231,1757790682976,-1550.32,0.00027671,2]
[385348232,1757790682987,-400.0,0.00027671,2]
[385348233,1757790682998,-400.0,0.00027671,2]
[385348234,1757790683009,-403.61377405,0.00027671,2]
[385348235,1757790683019,-519.54,0.00027671,2]
[385348236,1757790683030,-400.0,0.00027671,2]
[385348237,1757790683039,-400.0,0.00027671,2]
[385348238,1757790683049,-400.0,0.00027671,2]
[385348239,1757790683059,-812.08,0.00027671,2]
[385348240,1757790683069,-400.0,0.00027671,2]
[385348241,1757790683080,-1172.1,0.00027671,2]
[385348242,1757790683091,-1004.56,0.00027671,2]
[385348243,1757790683101,-400.0,0.00027671,2]
[385348244,1757790683110,-400.0,0.00027671,2]
[385348245,1757790683119,-406.12,0.00027671,2]
[385348246,1757790683128,-400.0,0.00027671,2]
[385348247,1757790683137,-738.83,0.00027671,2]
[385348248,1757790683147,-1445.07,0.00027671,2]
[385348249,1757790683155,-400.0,0.00027671,2]
[385348250,1757790683165,-400.0,0.00027671,2]
[385348251,1757790683174,-400.0,0.00027671,2]
[385348252,1757790683183,-400.0,0.00027671,2]
[385348253,1757790683192,-400.0,0.00027671,2]
[385348254,1757790683202,-681.1,0.00027671,2]
[385348255,1757790683211,-400.0,0.00027671,2]
[385348256,1757790683220,-351.19635717,0.00027671,2]
[385348257,1757790683230,-400.0,0.00027671,2]
[385348258,1757790683239,-400.0,0.00027671,2]
[385348259,1757790683248,-400.0,0.00027671,2]
[385348260,1757790683256,-636.43,0.00027671,2]
[385348261,1757790683265,-421.40929321,0.00027671,2]
[385348262,1757790683274,-400.0,0.00027671,2]
[385348263,1757790683283,-400.0,0.00027671,2]
[385348264,1757790683292,-1822.15,0.00027671,2]
[385348265,1757790683301,-400.0,0.00027671,2]
[385348266,1757790683310,-400.0,0.00027671,2]
[385348267,1757790683319,-417.32,0.00027671,2]
[385348268,1757790683328,-400.0,0.00027671,2]
[385348269,1757790683338,-1015.89,0.00027671,2]
[385348270,1757790683347,-761.25,0.00027671,2]
[385348271,1757790683356,-983.53,0.00027671,2]
[385348272,1757790683364,-722.69,0.00027671,2]
[385348273,1757790683374,-400.0,0.00027671,2]
[385348274,1757790683383,-411.62,0.00027671,2]
[385348275,1757790683392,-670.74,0.00027671,2]
[385348276,1757790683401,-458.09,0.00027671,2]
[385348277,1757790683410,-400.0,0.00027671,2]
[385348278,1757790683419,-400.0,0.00027671,2]
[385348279,1757790683428,-589.72,0.00027671,2]
[385348280,1757790683438,-401.8372646,0.00027671,2]
[385348281,1757790683447,-400.0,0.00027671,2]
[385348282,1757790683460,-400.0,0.00027671,2]
[385348283,1757790683470,-400.0,0.00027671,2]
[385348284,1757790683479,-1393.14,0.00027671,2]
[385348285,1757790683488,-422.08,0.00027671,2]
[385348286,1757790683498,-400.0,0.00027671,2]
[385348287,1757790683507,-400.0,0.00027671,2]
[385348288,1757790683516,-1286.51,0.00027671,2]
[385348289,1757790683525,-310.93021666,0.00027671,2]
[385348290,1757790683534,-404.4950485,0.00027671,2]
[385348291,1757790683543,-400.0,0.00027671,2]
[385348292,1757790683552,-400.0,0.00027671,2]
[385348293,1757790683561,-400.0,0.00027671,2]
[385348294,1757790683570,-1836.39,0.00027671,2]
[385348295,1757790683579,-400.0,0.00027671,2]
[385348296,1757790683588,-806.89,0.00027671,2]
[385348297,1757790683598,-3209.32,0.00027671,2]
[385348298,1757790683607,-400.0,0.00027671,2]
[385348299,1757790683617,-400.0,0.00027671,2]
[385348300,1757790683626,-2346.72,0.00027671,2]
[385348301,1757790683634,-1118.88,0.00027671,2]
[385348302,1757790683643,-243.50042679,0.00027671,2]
[385348303,1757790683652,-862.09,0.00027671,2]
[385348304,1757790683661,-176.89,0.00027671,2]
[385348305,1757790683670,-404.5266125,0.00027671,2]
[385348306,1757790683680,-400.0,0.00027671,2]
[385348307,1757790683689,-404.86242425,0.00027671,2]
[385348308,1757790683698,-400.0,0.00027671,2]
[385348309,1757790683708,-1033.98,0.00027671,2]
[385348310,1757790683716,-400.0,0.00027671,2]
[385348311,1757790683725,-702.99,0.00027671,2]
[385348312,1757790683734,-400.0,0.00027671,2]
[385348313,1757790683743,-400.0,0.00027671,2]
[385348314,1757790683753,-1450.08,0.00027671,2]
[385348315,1757790683762,-896.46,0.00027671,2]
[385348316,1757790683770,-524.85,0.00027671,2]
[385348317,1757790683780,-837.65,0.00027671,2]
[385348318,1757790683788,-941.17,0.00027671,2]
[385348319,1757790683797,-400.0,0.00027671,2]
[385348320,1757790683806,-872.8,0.00027671,2]
[385348321,1757790683815,-1000.0,0.00027671,2]
[385348322,1757790683824,-400.0,0.00027671,2]
[385348323,1757790683833,-727.17,0.00027671,2]
[385348324,1757790683842,-711.83,0.00027671,2]
[385348325,1757790683851,-2033.09,0.00027671,2]
[385348326,1757790683861,-765.36,0.00027671,2]
[385348327,1757790683870,-400.0,0.00027671,2]
[385348328,1757790683879,-778.2,0.00027671,2]
[385348329,1757790683888,-599.03,0.00027671,2]
[385348330,1757790683897,-980.63,0.00027671,2]
[385348331,1757790683907,-538.72,0.00027671,2]
[385348332,1757790683916,-677.3,0.00027671,2]
[385348333,1757790683925,-1183.03,0.00027671,2]
[385348334,1757790683934,-722.19,0.00027671,2]
[385348335,1757790683943,-400.0,0.00027671,2]
[385348336,1757790683952,-1015.48,0.00027671,2]
[385348337,1757790683961,-400.0,0.00027671,2]
[385348338,1757790683969,-965.24,0.00027671,2]
[385348339,1757790683979,-400.0,0.00027671,2]
[385348340,1757790683987,-400.0,0.00027671,2]
[385348341,1757790683999,-400.0,0.00027671,2]
[385348342,1757790684008,-653.28,0.00027671,2]
[385348343,1757790684016,-400.0,0.00027671,2]
[385348344,1757790684025,-400.0,0.00027671,2]
[385348345,1757790684034,-974.74,0.00027671,2]
[385348346,1757790684043,-400.0,0.00027671,2]
[385348347,1757790684052,-532.11,0.00027671,2]
[385348348,1757790684061,-400.0,0.00027671,2]
[385348349,1757790684070,-741.23,0.00027671,2]
[385348350,1757790684080,-400.0,0.00027671,2]
[385348351,1757790684089,-775.6,0.00027671,2]
[385348352,1757790684097,-400.0,0.00027671,2]
[385348353,1757790684107,-400.0,0.00027671,2]
[385348354,1757790684116,-400.0,0.00027671,2]
[385348355,1757790684127,-1047.99,0.00027671,2]
[385348356,1757790684136,-867.54,0.00027671,2]
[385348357,1757790684145,-400.0,0.00027671,2]
[385348358,1757790684154,-416.05504075,0.00027671,2]
[385348359,1757790684163,-400.0,0.00027671,2]
[385348360,1757790684172,-835.84,0.00027671,2]
[385348361,1757790684181,-400.0,0.00027671,2]
[385348362,1757790684190,-2266.8,0.00027671,2]
[385348363,1757790684199,-400.0,0.00027671,2]
[385348364,1757790684207,-603.59,0.00027671,2]
[385348365,1757790684216,-400.0,0.00027671,2]
[385348366,1757790684225,-400.0,0.00027671,2]
[385348367,1757790684234,-400.0,0.00027671,2]
[385348368,1757790684244,-526.24,0.00027671,2]
[385348369,1757790684252,-320.2828872,0.00027671,2]
[385348370,1757790684262,-1243.58,0.00027671,2]
[385348371,1757790684271,-400.0,0.00027671,2]
[385348372,1757790684279,-400.0,0.00027671,2]
[385348373,1757790684289,-414.27547822,0.00027671,2]
[385348374,1757790684298,-400.0,0.00027671,2]
[385348375,1757790684308,-605.54,0.00027671,2]
[385348376,1757790684317,-400.0,0.00027671,2]
[385348377,1757790684326,-502.15,0.00027671,2]
[385348378,1757790684335,-708.83,0.00027671,2]
[385348379,1757790684345,-462.88,0.00027671,2]
[385348380,1757790684354,-495.47,0.00027671,2]
[385348381,1757790684363,-858.84,0.00027671,2]
[385348382,1757790684372,-402.36574618,0.00027671,2]
[385348383,1757790684381,-400.0,0.00027671,2]
[385348384,1757790684390,-2089.21,0.00027671,2]
[385348385,1757790684399,-1484.39,0.00027671,2]
[385348386,1757790684408,-400.0,0.00027671,2]
[385348387,1757790684417,-400.0,0.00027671,2]
[385348388,1757790684426,-1139.82,0.00027671,2]